fUSD/lending_fUSD_20260404
["ID","MTS","AMOUNT","RATE_DAILY","PERIOD"]
[419682186,1775280677184,-1376.23,0.00035835,9]
[419682187,1775280677193,-658.95,0.00035835,9]
[419682188,1775280677202,-500.0,0.00035835,9]
[419682189,1775280677212,-1603.45,0.00035835,9]
[419682190,1775280677221,-500.0,0.00035835,9]
[419682191,1775280677231,-500.0,0.00035835,9]
[419682192,1775280677240,-1214.7,0.00035835,9]
[419682193,1775280677250,-487.14755283,0.00035835,9]
[419682194,1775280677260,-888.32,0.00035835,9]
[419682195,1775280677269,-500.0,0.00035835,9]
[419682196,1775280677279,-636.64,0.00035835,9]
[419682197,1775280677289,-500.0,0.00035835,9]
[419682198,1775280677298,-500.0,0.00035835,9]
[419682199,1775280677308,-1272.26,0.00035835,9]
[419682200,1775280677317,-500.0,0.00035835,9]
[419682201,1775280677327,-1899.03,0.00035835,9]
[419682202,1775280677338,-1529.48,0.00035835,9]
[419682203,1775280677348,-500.0,0.00035835,9]
[419682204,1775280677359,-500.0,0.00035835,9]
[419682205,1775280677369,-500.0,0.00035835,9]
[419682206,1775280677379,-4974.5,0.00035835,9]
[419682207,1775280677389,-500.0,0.00035835,9]
[419682208,1775280677398,-500.0,0.00035835,9]
[419682209,1775280677408,-1633.36,0.00035835,9]
[419682210,1775280677419,-500.0,0.00035835,9]
[419682211,1775280677429,-500.0,0.00035835,9]
[419682212,1775280677440,-500.0,0.00035835,9]
[419682213,1775280677451,-500.0,0.00035835,9]
[419682214,1775280677461,-985.82,0.00035835,9]
[419682215,1775280677471,-500.0,0.00035835,9]
[419682216,1775280677482,-500.0,0.00035835,9]
[419682217,1775280677491,-500.0,0.00035835,9]
[419682218,1775280677500,-500.0,0.00035835,9]
[419682219,1775280677510,-500.0,0.00035835,9]
[419682220,1775280677519,-1630.69,0.00035835,9]
[419682221,1775280677528,-500.0,0.00035835,9]
[419682222,1775280677539,-733.38,0.00035835,9]
[419682223,1775280677549,-1096.52,0.00035835,9]
[419682224,1775280677559,-500.0,0.00035835,9]
[419682225,1775280677568,-500.0,0.00035835,9]
[419682226,1775280677578,-1201.45,0.00035835,9]
[419682227,1775280677587,-2193.09,0.00035835,9]
[419682228,1775280677598,-973.64,0.00035835,9]
[419682229,1775280677608,-3890.02,0.00035835,9]
[419682230,1775280677619,-1704.35,0.00035835,4]
[419682231,1775280677628,-500.0,0.00035835,9]
[419682232,1775280677638,-314.81685936,0.00035835,9]
[419682233,1775280677648,-500.0,0.00035835,9]
[419682234,1775280677658,-772.06,0.00035835,9]
[419682235,1775280677668,-640.51,0.00035835,9]
[419682236,1775280677677,-799.63,0.00035835,9]
[419682237,1775280677686,-1192.72,0.00035835,9]
[419682238,1775280677695,-500.0,0.00035835,9]
[419682239,1775280677703,-500.0,0.00035835,9]
[419682240,1775280677711,-500.0,0.00035835,9]
[419682241,1775280677721,-500.0,0.00035835,9]
[419682242,1775280677730,-353.56171906,0.00035835,9]
[419682243,1775280677740,-622.73904045,0.00035835,9]
[419682244,1775280677749,-500.0,0.00035835,9]
[419682245,1775280677759,-500.0,0.00035835,9]
[419682246,1775280677769,-500.0,0.00035835,9]
[419682247,1775280677780,-500.0,0.00035835,9]
[419682248,1775280677789,-500.0,0.00035835,9]
[419682249,1775280677799,-278.64588495,0.00035835,9]
[419682250,1775280677810,-500.0,0.00035835,9]
[419682251,1775280677820,-500.0,0.00035835,9]
[419682252,1775280677830,-500.0,0.00035835,9]
[419682253,1775280677840,-500.0,0.00035835,9]
[419682254,1775280677850,-500.0,0.00035835,9]
[419682255,1775280677859,-515.21,0.00035835,9]
[419682256,1775280677869,-500.0,0.00035835,9]
[419682257,1775280677878,-500.0,0.00035835,9]
[419682258,1775280677888,-592.18,0.00035835,7]
[419682259,1775280677898,-500.0,0.00035835,9]
[419682260,1775280677907,-500.0,0.00035835,9]
[419682261,1775280677917,-500.0,0.00035835,9]
[419682262,1775280677927,-1021.94,0.00035835,9]
[419682263,1775280677936,-1288.91,0.00035835,9]
[419682264,1775280677946,-500.0,0.00035835,9]
[419682265,1775280677956,-500.0,0.00035835,9]
[419682266,1775280677965,-3359.3,0.00035835,9]
[419682267,1775280677975,-731.71,0.00035835,9]
[419682268,1775280677985,-1297.98,0.00035835,9]
[419682269,1775280677994,-11770.86,0.00035835,9]
[419682270,1775280678004,-1610.53,0.00035835,9]
[419682271,1775280678013,-500.0,0.00035835,9]
[419682272,1775280678023,-500.0,0.00035835,9]
[419682273,1775280678033,-500.0,0.00035835,9]
[419682274,1775280678042,-500.0,0.00035835,9]
[419682275,1775280678053,-500.0,0.00035835,9]
[419682276,1775280678063,-500.0,0.00035835,9]
[419682277,1775280678073,-500.0,0.00035835,9]
[419682278,1775280678083,-500.0,0.00035835,120]
[419682279,1775280678092,-500.0,0.00035835,9]
[419682280,1775280678102,-500.0,0.00035835,9]
[419682281,1775280678111,-713.54,0.00035835,9]
[419682282,1775280678122,-500.0,0.00035835,9]
[419682283,1775280678131,-500.0,0.00035835,9]
[419682284,1775280678141,-500.0,0.00035835,9]
[419682285,1775280678151,-500.0,0.00035835,9]
[419682286,1775280678160,-626.41,0.00035835,9]
[419682287,1775280678170,-756.26,0.00035835,9]
[419682288,1775280678179,-530.68,0.00035835,9]
[419682289,1775280678190,-500.0,0.00035835,9]
[419682290,1775280678199,-500.0,0.00035835,9]
[419682291,1775280678208,-500.0,0.00035835,9]
[419682292,1775280678218,-562.37,0.00035835,9]
[419682293,1775280678228,-500.0,0.00035835,9]
[419682294,1775280678237,-500.0,0.00035835,9]
[419682295,1775280678247,-1126.98,0.00035835,9]
[419682296,1775280678257,-4642.6,0.00035835,9]
[419682297,1775280678266,-500.0,0.00035835,9]
[419682298,1775280678275,-500.0,0.00035835,9]
[419682299,1775280678285,-500.0,0.00035835,9]
[419682300,1775280678295,-500.0,0.00035835,9]
[419682301,1775280678304,-719.42,0.00035835,9]
[419682302,1775280678314,-934.37,0.00035835,9]
[419682303,1775280678324,-852.29,0.00035835,9]
[419682304,1775280678333,-500.0,0.00035835,9]
[419682305,1775280678343,-1707.71,0.00035835,9]
[419682306,1775280678352,-500.0,0.00035835,9]
[419682307,1775280678362,-1282.76,0.00035835,9]
[419682308,1775280678371,-1051.09,0.00035835,9]
[419682309,1775280678382,-500.0,0.00035835,9]
[419682310,1775280678392,-412.00330373,0.00035835,9]
[419682311,1775280678402,-500.0,0.00035835,9]
[419682312,1775280678413,-500.0,0.00035835,9]
[419682313,1775280678424,-500.0,0.00035835,9]
[419682314,1775280678433,-500.0,0.00035835,9]
[419682315,1775280678443,-500.0,0.00035835,9]
[419682316,1775280678454,-902.05,0.00035835,9]
[419682317,1775280678464,-500.0,0.00035835,9]
[419682318,1775280678473,-500.0,0.00035835,9]
[419682319,1775280678483,-500.0,0.00035835,9]
[419682320,1775280678493,-500.0,0.00035835,9]
[419682321,1775280678502,-500.0,0.00035835,9]
[419682322,1775280678513,-500.0,0.00035835,9]
[419682323,1775280678522,-806.91,0.00035835,9]
[419682324,1775280678532,-500.0,0.00035835,9]
[419682325,1775280678541,-822.76,0.00035835,9]
[419682326,1775280678551,-743.05,0.00035835,9]
[419682327,1775280678561,-500.0,0.00035835,9]
[419682328,1775280678571,-500.0,0.00035835,9]
[419682329,1775280678581,-779.38,0.00035835,9]
[419682330,1775280678590,-585.27,0.00035835,9]
[419682331,1775280678600,-500.0,0.00035835,9]
[419682332,1775280678609,-1274.82,0.00035835,9]
[419682333,1775280678619,-1211.04,0.00035835,9]
[419682334,1775280678629,-502.69,0.00035835,9]
[419682335,1775280678639,-438.64467605,0.00035835,9]
[419682336,1775280678648,-1740.09,0.00035835,9]
[419682337,1775280678658,-500.0,0.00035835,9]
[419682338,1775280678667,-500.0,0.00035835,9]
[419682339,1775280678676,-500.0,0.00035835,9]
[419682340,1775280678687,-500.0,0.00035835,9]
[419682341,1775280678696,-500.0,0.00035835,9]
[419682342,1775280678707,-1274.67,0.00035835,9]
[419682343,1775280678718,-500.0,0.00035835,9]
[419682344,1775280678728,-500.0,0.00035835,9]
[419682345,1775280678738,-500.0,0.00035835,9]
[419682346,1775280678747,-500.0,0.00035835,9]
[419682347,1775280678757,-250.0,0.00035891,39]
[419682348,1775280678766,-2000.0,0.000359,7]
[419682349,1775280678776,-466.7284072,0.000359,2]
[419682350,1775280678785,-201.228834,0.000359,12]
[419682351,1775280678795,-1000.0,0.00035931,7]
[419682352,1775280678804,-150.0,0.0003594,7]
[419682353,1775280678813,-278.00730373,0.00035942,14]
[419682354,1775280678823,-154.67238165,0.00035945,3]
[419682355,1775280678833,-204.62299257,0.00035945,3]
[419682356,1775280678843,-500.0,0.00035945,2]
[419682357,1775280678852,-500.0,0.00035945,9]
[419682358,1775280678862,-500.0,0.00035945,9]
[419682359,1775280678871,-500.0,0.00035945,9]
[419682360,1775280678882,-501.24596364,0.00035945,9]
[419682361,1775280678892,-500.0,0.00035945,9]
[419682362,1775280678901,-500.0,0.00035945,9]
[419682363,1775280678911,-501.402771,0.00035945,9]
[419682364,1775280678921,-500.0,0.00035945,9]
[419682365,1775280678931,-500.0,0.00035945,9]
[419682366,1775280678941,-500.0,0.00035945,9]
[419682367,1775280679125,-500.0,0.00035945,9]
[419682368,1775280679150,-500.0,0.00035945,9]
[419682369,1775280679160,-500.0,0.00035945,9]
[419682370,1775280679170,-500.0,0.00035945,9]
[419682371,1775280679180,-500.0,0.00035945,9]
[419682372,1775280679189,-1654.57,0.00035945,9]
[419682373,1775280679199,-631.05,0.00035945,9]
[419682374,1775280679209,-500.0,0.00035945,9]
[419682375,1775280679218,-500.0,0.00035945,9]
[419682376,1775280679227,-500.0,0.00035945,9]
[419682377,1775280679238,-853.47,0.00035945,9]
[419682378,1775280679248,-500.0,0.00035945,9]
[419682379,1775280679258,-590.85115175,0.00035945,9]
[419682380,1775280679269,-587.30834298,0.00035945,9]
[419682381,1775280679279,-500.0,0.00035945,9]
[419682382,1775280679289,-500.0,0.00035945,9]
[419682383,1775280679298,-593.37,0.00035945,9]
[419682384,1775280679307,-500.0,0.00035945,9]
[419682385,1775280679316,-500.0,0.00035945,9]
[419682386,1775280679325,-500.0,0.00035945,9]
[419682387,1775280679334,-500.0,0.00035945,9]
[419682388,1775280679344,-500.0,0.00035945,9]
[419682389,1775280679353,-500.0,0.00035945,9]
[419682390,1775280679362,-500.0,0.00035945,9]
[419682391,1775280679371,-500.0,0.00035945,9]
[419682392,1775280679380,-500.0,0.00035945,9]
[419682393,1775280679389,-500.0,0.00035945,2]
[419682394,1775280679399,-500.0,0.00035945,9]
[419682395,1775280679409,-500.0,0.00035945,9]
[419682396,1775280679418,-500.0,0.00035945,9]
[419682397,1775280679428,-500.0,0.00035945,9]
[419682398,1775280679437,-500.0,0.00035945,9]
[419682399,1775280679446,-984.19,0.00035945,9]
[419682400,1775280679455,-500.0,0.00035945,9]
[419682401,1775280679464,-500.0,0.00035945,9]
[419682402,1775280679474,-500.0,0.00035945,9]
[419682403,1775280679483,-500.0,0.00035945,9]
[419682404,1775280679492,-500.0,0.00035945,9]
[419682405,1775280679502,-500.0,0.00035945,9]
[419682406,1775280679511,-409.13495323,0.00035945,9]
[419682407,1775280679522,-735.78,0.00035945,9]
[419682408,1775280679531,-500.0,0.00035945,9]
[419682409,1775280679540,-500.0,0.00035945,9]
[419682410,1775280679550,-500.0,0.00035945,9]
[419682411,1775280679560,-500.0,0.00035945,9]
[419682412,1775280679571,-500.0,0.00035945,9]
[419682413,1775280679583,-500.0,0.00035945,9]
[419682414,1775280679594,-500.0,0.00035945,9]
[419682415,1775280679604,-560.5,0.00035945,9]
[419682416,1775280679614,-500.0,0.00035945,9]
[419682417,1775280679624,-517.96,0.00035945,9]
[419682418,1775280679635,-500.0,0.00035945,9]
[419682419,1775280679645,-500.0,0.00035945,9]
[419682420,1775280679654,-500.0,0.00035945,9]
[419682421,1775280679664,-500.0,0.00035945,9]
[419682422,1775280679673,-500.0,0.00035945,9]
[419682423,1775280679682,-500.0,0.00035945,9]
[419682424,1775280679691,-500.0,0.00035945,9]
[419682425,1775280679701,-609.97028439,0.00035945,9]
[419682426,1775280679710,-492.69012604,0.00035945,9]
[419682427,1775280679720,-703.63,0.00035945,9]
[419682428,1775280679729,-500.0,0.00035945,9]
[419682429,1775280679739,-500.0,0.00035945,9]
[419682430,1775280679748,-300.0,0.00035945,2]
[419682431,1775280679759,-500.0,0.00035945,9]
[419682432,1775280679768,-500.0,0.00035945,9]
[419682433,1775280679777,-1469.43,0.00035945,9]
[419682434,1775280679787,-500.0,0.00035945,9]
[419682435,1775280679797,-500.0,0.00035945,5]
[419682436,1775280679806,-500.0,0.00035945,9]
[419682437,1775280679815,-500.0,0.00035945,9]
[419682438,1775280679825,-500.0,0.00035945,9]
[419682439,1775280679835,-500.0,0.00035945,9]
[419682440,1775280679845,-783.24,0.00035945,9]
[419682441,1775280679855,-1424.16,0.00035945,9]
[419682442,1775280679864,-500.0,0.00035945,9]
[419682443,1775280679875,-500.0,0.00035945,9]
[419682444,1775280679885,-500.0,0.00035945,9]
[419682445,1775280679894,-500.0,0.00035945,9]
[419682446,1775280679904,-500.0,0.00035945,9]
[419682447,1775280679913,-2110.0,0.00035945,2]
[419682448,1775280679923,-498.93793585,0.00035945,9]
[419682449,1775280679933,-500.0,0.00035945,9]
[419682450,1775280679943,-500.0,0.00035945,9]
[419682451,1775280679953,-968.63,0.00035945,9]
[419682452,1775280679963,-500.0,0.00035945,9]
[419682453,1775280679972,-1208.88,0.00035945,9]
[419682454,1775280679982,-500.0,0.00035945,9]
[419682455,1775280679992,-500.0,0.00035945,9]
[419682456,1775280680001,-500.0,0.00035945,9]
[419682457,1775280680010,-500.0,0.00035945,9]
[419682458,1775280680020,-500.0,0.00035945,9]
[419682459,1775280680029,-500.0,0.00035945,9]
[419682460,1775280680039,-607.00554462,0.00035945,9]
[419682461,1775280680049,-500.0,0.00035945,9]
[419682462,1775280680059,-500.0,0.00035945,9]
[419682463,1775280680068,-640.15,0.00035945,9]
[419682464,1775280680078,-500.0,0.00035945,9]
[419682465,1775280680088,-500.0,0.00035945,9]
[419682466,1775280680098,-503.67152597,0.00035945,9]
[419682467,1775280680107,-500.0,0.00035945,9]
[419682468,1775280680116,-391.16596713,0.00035945,9]
[419682469,1775280680126,-309.86910471,0.00035945,9]
[419682470,1775280680135,-500.0,0.00035945,9]
[419682471,1775280680144,-500.0,0.00035945,9]
[419682472,1775280680154,-500.0,0.00035945,9]
[419682473,1775280680163,-500.0,0.00035945,9]
[419682474,1775280680174,-500.0,0.00035945,9]
[419682475,1775280680183,-500.0,0.00035945,9]
[419682476,1775280680194,-500.0,0.00035945,9]
[419682477,1775280680204,-500.0,0.00035945,9]
[419682478,1775280680215,-2077.05,0.00035945,9]
[419682479,1775280680224,-500.0,0.00035945,9]
[419682480,1775280680235,-500.0,0.00035945,9]
[419682481,1775280680245,-500.0,0.00035945,9]
[419682482,1775280680254,-500.0,0.00035945,9]
[419682483,1775280680264,-500.0,0.00035945,9]
[419682484,1775280680273,-500.0,0.00035945,9]
[419682485,1775280680283,-500.0,0.00035945,9]
[419682486,1775280680293,-500.0,0.00035945,9]
[419682487,1775280680304,-520.98731523,0.00035945,9]
[419682488,1775280680314,-500.0,0.00035945,2]
[419682489,1775280680323,-918.91,0.00035945,9]
[419682490,1775280680332,-501.95636961,0.00035945,9]
[419682491,1775280680341,-500.0,0.00035945,9]
[419682492,1775280680351,-500.0,0.00035945,9]
[419682493,1775280680360,-500.0,0.00035945,9]
[419682494,1775280680369,-500.0,0.00035945,9]
[419682495,1775280680379,-606.54,0.00035945,9]
[419682496,1775280680389,-500.0,0.00035945,9]
[419682497,1775280680398,-500.0,0.00035945,9]
[419682498,1775280680407,-723.75,0.00035945,9]
[419682499,1775280680416,-500.0,0.00035945,9]
[419682500,1775280680426,-1422.15,0.00035945,9]
[419682501,1775280680435,-509.21064396,0.00035945,9]
[419682502,1775280680445,-607.85694317,0.00035945,9]
[419682503,1775280680454,-364.56923517,0.00035945,9]
[419682504,1775280680463,-500.0,0.00035945,9]
[419682505,1775280680472,-1455.47,0.00035945,9]
[419682506,1775280680482,-500.0,0.00035945,9]
[419682507,1775280680491,-500.0,0.00035945,9]
[419682508,1775280680500,-1430.79,0.00035945,9]
[419682509,1775280680510,-500.0,0.00035945,9]
[419682510,1775280680520,-734.9,0.00035945,9]
[419682511,1775280680529,-500.0,0.00035945,9]
[419682512,1775280680538,-500.0,0.00035945,9]
[419682513,1775280680548,-500.0,0.00035945,9]
[419682514,1775280680557,-802.74,0.00035945,9]
[419682515,1775280680566,-835.82,0.00035945,9]
[419682516,1775280680576,-500.0,0.00035945,9]
[419682517,1775280680585,-798.67,0.00035945,9]
[419682518,1775280680594,-500.0,0.00035945,9]
[419682519,1775280680604,-500.0,0.00035945,9]
[419682520,1775280680613,-500.0,0.00035945,9]
[419682521,1775280680622,-500.0,0.00035945,9]
[419682522,1775280680631,-901.72,0.00035945,9]
[419682523,1775280680641,-500.0,0.00035945,9]
[419682524,1775280680651,-500.0,0.00035945,9]
[419682525,1775280680663,-500.0,0.00035945,9]
[419682526,1775280680673,-500.0,0.00035945,9]
[419682527,1775280680682,-1123.46,0.00035945,9]
[419682528,1775280680692,-1044.33,0.00035945,9]
[419682529,1775280680703,-1230.08,0.00035945,9]
[419682530,1775280680712,-1693.82,0.00035945,9]
[419682531,1775280680721,-500.0,0.00035945,9]
[419682532,1775280680732,-500.0,0.00035945,9]
[419682533,1775280680741,-505.13600319,0.00035945,9]
[419682534,1775280680751,-500.0,0.00035945,2]
[419682535,1775280680761,-1596.49,0.00035945,9]
[419682536,1775280680771,-500.0,0.00035945,9]
[419682537,1775280680780,-500.0,0.00035945,9]
[419682538,1775280680789,-1061.35,0.00035945,9]
[419682539,1775280680798,-500.0,0.00035945,9]
[419682540,1775280680808,-1492.49,0.00035945,9]
[419682541,1775280680817,-500.0,0.00035945,9]
[419682542,1775280680826,-500.0,0.00035945,9]
[419682543,1775280680835,-213.43770541,0.00035945,9]
[419682544,1775280680844,-544.86767032,0.00035945,9]
[419682545,1775280680854,-500.0,0.00035945,9]
[419682546,1775280680866,-550.97,0.00035945,9]
[419682547,1775280680876,-653.46,0.00035945,9]
[419682548,1775280680885,-500.0,0.00035945,9]
[419682549,1775280680894,-500.0,0.00035945,9]
[419682550,1775280680904,-500.0,0.00035945,9]
[419682551,1775280680914,-500.0,0.00035945,9]
[419682552,1775280680923,-500.0,0.00035945,9]
[419682553,1775280680932,-500.0,0.00035945,9]
[419682554,1775280680941,-1492.94,0.00035945,7]
[419682555,1775280680950,-447.02476075,0.00035945,9]
[419682556,1775280680959,-500.0,0.00035945,9]
[419682557,1775280680969,-1209.29,0.00035945,9]
[419682558,1775280680978,-500.0,0.00035945,9]
[419682559,1775280680987,-500.0,0.00035945,9]
[419682560,1775280680996,-504.2,0.00035945,9]
[419682561,1775280681006,-500.0,0.00035945,9]
[419682562,1775280681015,-1338.82,0.00035945,9]
[419682563,1775280681024,-500.0,0.00035945,9]
[419682564,1775280681033,-500.0,0.00035945,9]
[419682565,1775280681042,-891.16,0.00035945,9]
[419682566,1775280681052,-500.0,0.00035945,9]
[419682567,1775280681062,-1892.58,0.00035945,9]
[419682568,1775280681071,-500.0,0.00035945,9]
[419682569,1775280681081,-500.0,0.00035945,9]
[419682570,1775280681090,-500.0,0.00035945,9]
[419682571,1775280681100,-500.0,0.00035945,9]
[419682572,1775280681110,-500.0,0.00035945,9]
[419682573,1775280681119,-500.0,0.00035945,9]
[419682574,1775280681128,-500.0,0.00035945,9]
[419682575,1775280681138,-1108.7,0.00035945,9]
[419682576,1775280681148,-516.81905754,0.00035945,9]
[419682577,1775280681157,-178.80819691,0.00035945,9]
[419682578,1775280681166,-500.0,0.00035945,9]
[419682579,1775280681175,-631.9322259,0.00035945,9]
[419682580,1775280681184,-500.0,0.00035945,9]
[419682581,1775280681194,-500.0,0.00035945,9]
[419682582,1775280681203,-526.33829791,0.00035945,9]
[419682583,1775280681211,-1457.69,0.00035945,9]
[419682584,1775280681221,-500.0,0.00035945,9]
[419682585,1775280681230,-500.0,0.00035945,9]
[419682586,1775280681240,-634.0,0.00035945,9]
[419682587,1775280681249,-500.0,0.00035945,9]
[419682588,1775280681259,-500.0,0.00035945,9]
[419682589,1775280681268,-539.73189312,0.00035945,9]
[419682590,1775280681277,-935.11,0.00035945,9]
[419682591,1775280681287,-901.08,0.00035945,9]
[419682592,1775280681296,-500.0,0.00035945,9]
[419682593,1775280681305,-500.0,0.00035945,9]
[419682594,1775280681314,-500.0,0.00035945,9]
[419682595,1775280681323,-500.0,0.00035945,9]
[419682596,1775280681332,-500.0,0.00035945,9]
[419682597,1775280681341,-430.6840965,0.00035945,9]
[419682598,1775280681350,-500.0,0.00035945,9]
[419682599,1775280681359,-990.0,0.00035945,9]
[419682600,1775280681368,-500.0,0.00035945,9]
[419682601,1775280681378,-517.58263236,0.00035945,9]
[419682602,1775280681387,-500.0,0.00035945,9]
[419682603,1775280681396,-770.94,0.00035945,9]
[419682604,1775280681405,-500.0,0.00035945,9]
[419682605,1775280681414,-500.0,0.00035945,9]
[419682606,1775280681424,-1000.0,0.00035945,30]
[419682607,1775280681433,-1071.4,0.00035945,30]
[419682608,1775280681442,-500.0,0.00035945,9]
[419682609,1775280681451,-500.0,0.00035945,9]
[419682610,1775280681460,-932.82,0.00035945,9]
[419682611,1775280681469,-500.0,0.00035945,9]
[419682612,1775280681479,-500.0,0.00035945,9]
[419682613,1775280681488,-500.0,0.00035945,9]
[419682614,1775280681498,-500.0,0.00035945,9]
[419682615,1775280681507,-614.0701621,0.00035945,9]
[419682616,1775280681516,-500.0,0.00035945,9]
[419682617,1775280681525,-234.50508184,0.00035945,9]
[419682618,1775280681536,-500.0,0.00035945,9]
[419682619,1775280681546,-500.0,0.00035945,9]
[419682620,1775280681555,-500.0,0.00035945,9]
[419682621,1775280681564,-500.0,0.00035945,9]
[419682622,1775280681574,-500.0,0.00035945,9]
[419682623,1775280681586,-1194.92,0.00035945,9]
[419682624,1775280681596,-500.0,0.00035945,9]
[419682625,1775280681607,-248.39304746,0.00035945,9]
[419682626,1775280681616,-501.29827713,0.00035945,9]
[419682627,1775280681625,-500.0,0.00035945,9]
[419682628,1775280681634,-1294.2,0.00035945,9]
[419682629,1775280681643,-500.0,0.00035945,9]
[419682630,1775280681651,-240.44437785,0.00035945,9]
[419682631,1775280681660,-500.0,0.00035945,9]
[419682632,1775280681669,-500.0,0.00035945,9]
[419682633,1775280681678,-610.34,0.00035945,9]
[419682634,1775280681687,-711.02,0.00035945,9]
[419682635,1775280681696,-500.0,0.00035945,9]
[419682636,1775280681705,-521.17,0.00035945,9]
[419682637,1775280681714,-505.81,0.00035945,9]
[419682638,1775280681723,-523.09,0.00035945,9]
[419682639,1775280681732,-744.02,0.00035945,9]
[419682640,1775280681742,-500.0,0.00035945,9]
[419682641,1775280681751,-500.0,0.00035945,9]
[419682642,1775280681760,-500.0,0.00035945,9]
[419682643,1775280681769,-590.44,0.00035945,9]
[419682644,1775280681778,-2226.41,0.00035945,9]
[419682645,1775280681786,-500.0,0.00035945,9]
[419682646,1775280681795,-500.0,0.00035945,9]
[419682647,1775280681804,-500.0,0.00035945,9]
[419682648,1775280681814,-500.0,0.00035945,9]
[419682649,1775280681823,-1037.6,0.00035945,9]
[419682650,1775280681833,-500.0,0.00035945,9]
[419682651,1775280681842,-663.14,0.00035945,9]
[419682652,1775280681852,-246.8903209,0.00035945,9]
[419682653,1775280681861,-500.0,0.00035945,9]
[419682654,1775280681871,-500.0,0.00035945,9]
[419682655,1775280681880,-500.0,0.00035945,9]
[419682656,1775280681891,-500.0,0.00035945,9]
[419682657,1775280681900,-609.59,0.00035945,9]
[419682658,1775280681909,-500.0,0.00035945,9]
[419682659,1775280681918,-1020.17,0.00035945,9]
[419682660,1775280681927,-500.0,0.00035945,9]
[419682661,1775280681936,-500.0,0.00035945,9]
[419682662,1775280681946,-500.0,0.00035945,9]
[419682663,1775280681956,-500.0,0.00035945,9]
[419682664,1775280681965,-500.0,0.00035945,9]
[419682665,1775280681974,-1585.05,0.00035945,9]
[419682666,1775280681984,-1171.59,0.00035945,9]
[419682667,1775280681995,-1101.01,0.00035945,9]
[419682668,1775280682004,-500.0,0.00035945,9]
[419682669,1775280682013,-500.0,0.00035945,9]
[419682670,1775280682023,-500.0,0.00035945,9]
[419682671,1775280682033,-1263.62,0.00035945,9]
[419682672,1775280682043,-631.83,0.00035945,9]
[419682673,1775280682052,-500.0,0.00035945,9]
[419682674,1775280682062,-500.0,0.00035945,9]
[419682675,1775280682071,-500.0,0.00035945,9]
[419682676,1775280682080,-500.0,0.00035945,9]
[419682677,1775280682089,-500.0,0.00035945,9]
[419682678,1775280682099,-500.0,0.00035945,9]
[419682679,1775280682109,-500.0,0.00035945,9]
[419682680,1775280682121,-228.98,0.00035945,9]
[419682681,1775280682131,-898.46,0.00035945,9]
[419682682,1775280682140,-500.0,0.00035945,9]
[419682683,1775280682149,-500.0,0.00035945,9]
[419682684,1775280682158,-1196.16,0.00035945,9]
[419682685,1775280682167,-500.0,0.00035945,9]